fUST/lending_fUST_20251111
["ID","MTS","AMOUNT","RATE_DAILY","PERIOD"]
[393545878,1762790435303,209.42419,0.0003,120]
[393545879,1762790505024,-163.00883683,0.000187,2]
[393545880,1762790505045,-1090.9778207,0.0001871,2]
[393545881,1762790505069,-160.30501469,0.00018806,2]
[393545882,1762790505093,-250.416598,0.00018931,2]
[393545883,1762790505114,-670.81150448,0.0001967,2]
[393545884,1762790505136,-245.179238,0.00019786,2]
[393545885,1762790505159,-1200.0,0.00019872,2]
[393545886,1762790505180,-565.85584861,0.00019873,2]
[393545887,1762790505201,-300.0,0.00019885,2]
[393545888,1762790505221,-1200.0,0.00019886,2]
[393545889,1762790505240,-300.0,0.00019886,2]
[393545890,1762790505268,-300.0,0.00019886,2]
[393545891,1762790505290,-551.04743742,0.00019886,2]
[393545892,1762790513669,-500.0,0.00019886,2]
[393545893,1762790513690,-384.80660587,0.00019886,2]
[393545894,1762790513714,-500.0,0.00019886,2]
[393545895,1762790513737,-500.0,0.00019886,2]
[393545896,1762790513760,-500.0,0.00019886,2]
[393545897,1762790513785,-1215.90590992,0.00019886,2]
[393545898,1762790513808,-500.0,0.00019886,2]
[393545899,1762790513832,-221.67032151,0.00019886,2]
[393545900,1762790513856,-500.0,0.00019886,2]
[393545901,1762790513876,-500.0,0.00019886,2]
[393545902,1762790513903,-500.0,0.00019886,2]
[393545903,1762790513926,-267.7224914,0.00019886,2]
[393545904,1762790513950,-500.0,0.00019886,2]
[393545905,1762790513975,-1215.90590992,0.00019886,2]
[393545906,1762790513999,-500.0,0.00019886,2]
[393545907,1762790514022,-500.0,0.00019886,2]
[393545908,1762790514043,-500.0,0.00019886,2]
[393545909,1762790514067,-500.0,0.00019886,2]
[393545910,1762790514090,-500.0,0.00019886,2]
[393545911,1762790514113,-500.0,0.00019886,2]
[393545912,1762790514136,-500.0,0.00019886,2]
[393545913,1762790514162,-1215.90590992,0.00019886,2]
[393545914,1762790514185,-500.0,0.00019886,2]
[393545915,1762790514209,-500.0,0.00019886,2]
[393545916,1762790514233,-1215.90590992,0.00019886,2]
[393545917,1762790514256,-500.0,0.00019886,2]
[393545918,1762790514282,-465.78685822,0.00019886,2]
[393545919,1762790514307,-500.0,0.00019886,2]
[393545920,1762790514330,-500.0,0.00019886,2]
[393545921,1762790514354,-1215.90590992,0.00019886,2]
[393545922,1762790514378,-500.0,0.00019886,2]
[393545923,1762790514406,-1215.90590992,0.00019886,2]
[393545924,1762790514435,-249.73737356,0.00019886,2]
[393545925,1762790514457,-500.0,0.00019886,2]
[393545926,1762790514480,-500.0,0.00019886,2]
[393545927,1762790514502,-500.0,0.00019886,2]
[393545928,1762790514529,-1215.90590992,0.00019886,2]
[393545929,1762790514551,-500.0,0.00019886,2]
[393545930,1762790514575,-1215.90590992,0.00019886,2]
[393545931,1762790514598,-500.0,0.00019886,2]
[393545932,1762790514623,-1215.90590992,0.00019886,2]
[393545933,1762790514647,-500.0,0.00019886,2]
[393545934,1762790514672,-1215.90590992,0.00019886,2]
[393545935,1762790514695,-500.0,0.00019886,2]
[393545936,1762790514719,-1215.90590992,0.00019886,2]
[393545937,1762790514742,-500.0,0.00019886,2]
[393545938,1762790514846,-1215.90590992,0.00019886,2]
[393545939,1762790514872,-500.0,0.00019886,2]
[393545940,1762790514900,-1215.90590992,0.00019886,2]
[393545941,1762790514925,-500.0,0.00019886,2]
[393545942,1762790514950,-1215.90590992,0.00019886,2]
[393545943,1762790514975,-1215.90590992,0.00019886,2]
[393545944,1762790514998,-500.0,0.00019886,2]
[393545945,1762790515022,-386.7988709,0.00019886,2]
[393545946,1762790515048,-1215.90590992,0.00019886,2]
[393545947,1762790515073,-1215.90590992,0.00019886,2]
[393545948,1762790515098,-1215.90590992,0.00019886,2]
[393545949,1762790515122,-500.0,0.00019886,2]
[393545950,1762790515146,-1215.90590992,0.00019886,2]
[393545951,1762790515170,-500.0,0.00019886,2]
[393545952,1762790515194,-1215.90590992,0.00019886,2]
[393545953,1762790515218,-1215.90590992,0.00019886,2]
[393545954,1762790515242,-1215.90590992,0.00019886,2]
[393545955,1762790515268,-1215.90590992,0.00019886,2]
[393545956,1762790515294,-1215.90590992,0.00019886,2]
[393545957,1762790515319,-1215.90590992,0.00019886,2]
[393545958,1762790515342,-1215.90590992,0.00019886,2]
[393545959,1762790515366,-1215.90590992,0.00019886,2]
[393545960,1762790515390,-1215.90590992,0.00019886,2]
[393545961,1762790515413,-1215.90590992,0.00019886,2]
[393545962,1762790515436,-1215.90590992,0.00019886,2]
[393545963,1762790515465,-1215.90590992,0.00019886,2]
[393545964,1762790515495,-1215.90590992,0.00019886,2]
[393545965,1762790515520,-1215.90590992,0.00019886,2]
[393545966,1762790515547,-1215.90590992,0.00019886,2]
[393545967,1762790515572,-1215.90590992,0.00019886,2]
[393545968,1762790515598,-1215.90590992,0.00019886,2]
[393545969,1762790515625,-1215.90590992,0.00019886,2]
[393545970,1762790515651,-1215.90590992,0.00019886,2]
[393545971,1762790515676,-1215.90590992,0.00019886,2]
[393545972,1762790515702,-1215.90590992,0.00019886,2]
[393545973,1762790515729,-1215.90590992,0.00019886,2]
[393545974,1762790515753,-500.0,0.00019886,2]
[393545975,1762790515778,-500.0,0.00019886,2]
[393545976,1762790515804,-1208.30649798,0.00019886,2]
[393545977,1762790515831,-1208.30649798,0.00019886,2]
[393545978,1762790515858,-1208.30649798,0.00019886,2]
[393545979,1762790515885,-1208.30649798,0.00019886,2]
[393545980,1762790515912,-1208.30649798,0.00019886,2]
[393545981,1762790515940,-1208.30649798,0.00019886,2]
[393545982,1762790515971,-1208.30649798,0.00019886,2]
[393545983,1762790516000,-1208.30649798,0.00019886,2]
[393545984,1762790516031,-1208.30649798,0.00019886,2]
[393545985,1762790516060,-1208.30649798,0.00019886,2]
[393545986,1762790516089,-1208.30649798,0.00019886,2]
[393545987,1762790516117,-1208.30649798,0.00019886,2]
[393545988,1762790516144,-1208.30649798,0.00019886,2]
[393545989,1762790516173,-1208.30649798,0.00019886,2]
[393545990,1762790516200,-1208.30649798,0.00019886,2]
[393545991,1762790516228,-1208.30649798,0.00019886,2]
[393545992,1762790516321,-1208.30649798,0.00019886,2]
[393545993,1762790516349,-1208.30649798,0.00019886,2]
[393545994,1762790516375,-1208.30649798,0.00019886,2]
[393545995,1762790516402,-80.90941147,0.00019886,2]
[393545998,1762790630377,188.13487977,0.000328,120]
[393546000,1762790747187,200.0,0.0003287,120]
[393546005,1762790881271,177.84,0.00015225,2]
[393546010,1762790941835,389.364731,0.00013699,2]
[393546011,1762790945235,188.13487978,0.000328,120]
[393546012,1762790951218,-4521.33562174,0.00019783,2]
[393546013,1762790951239,-163.45282534,0.00019783,2]
[393546014,1762790951261,-300.0,0.00019784,2]
[393546015,1762790951284,-1200.0,0.00019785,2]
[393546016,1762790951307,-160.0989144,0.00019829,2]
[393546017,1762790951326,-500.0,0.00019873,2]
[393546018,1762790951348,-500.0,0.00019873,2]
[393546019,1762790951377,-194.41526373,0.00019882,2]
[393546020,1762790951400,-500.0,0.00019882,2]
[393546021,1762790951427,-273.97631758,0.00019882,2]
[393546022,1762790951451,-357.96336906,0.00019882,2]
[393546023,1762790951476,-500.0,0.00019882,2]
[393546024,1762790951501,-500.0,0.00019882,2]
[393546025,1762790951527,-500.0,0.00019882,2]
[393546026,1762790951549,-209.64431899,0.00019882,2]
[393546027,1762790951574,-500.0,0.00019882,2]
[393546028,1762790951596,-500.0,0.00019882,2]
[393546029,1762790951621,-500.0,0.00019882,2]
[393546030,1762790951644,-500.0,0.00019882,2]
[393546031,1762790951668,-500.0,0.00019882,2]
[393546032,1762790951692,-500.0,0.00019882,2]
[393546033,1762790951715,-500.0,0.00019882,2]
[393546034,1762790951740,-500.0,0.00019882,2]
[393546035,1762790951778,-500.0,0.00019882,2]
[393546036,1762790951804,-500.0,0.00019882,2]
[393546037,1762790951828,-500.0,0.00019882,2]
[393546038,1762790951853,-500.0,0.00019882,2]
[393546039,1762790951879,-500.0,0.00019882,2]
[393546040,1762790951904,-500.0,0.00019882,2]
[393546041,1762790951927,-500.0,0.00019882,2]
[393546042,1762790951950,-500.0,0.00019882,2]
[393546043,1762790951973,-500.0,0.00019882,2]
[393546044,1762790951996,-500.0,0.00019882,2]
[393546045,1762790952019,-500.0,0.00019882,2]
[393546046,1762790952042,-500.0,0.00019882,2]
[393546047,1762790952065,-500.0,0.00019882,2]
[393546048,1762790952089,-500.0,0.00019882,2]
[393546049,1762790952114,-500.0,0.00019882,2]
[393546050,1762790952139,-500.0,0.00019882,2]
[393546051,1762790952164,-500.0,0.00019882,2]
[393546052,1762790952187,-500.0,0.00019882,2]
[393546053,1762790952210,-500.0,0.00019882,2]
[393546054,1762790952234,-500.0,0.00019882,2]
[393546055,1762790952256,-500.0,0.00019882,2]
[393546056,1762790952279,-500.0,0.00019882,2]
[393546057,1762790952302,-500.0,0.00019882,2]
[393546058,1762790952325,-500.0,0.00019882,2]
[393546059,1762790952349,-500.0,0.00019882,2]
[393546060,1762790952374,-500.0,0.00019882,2]
[393546061,1762790952520,-500.0,0.00019882,2]
[393546062,1762790952546,-500.0,0.00019882,2]
[393546063,1762790952572,-500.0,0.00019882,2]
[393546064,1762790952595,-500.0,0.00019882,2]
[393546065,1762790952619,-500.0,0.00019882,2]
[393546066,1762790952642,-500.0,0.00019882,2]
[393546067,1762790952665,-500.0,0.00019882,2]
[393546068,1762790952689,-500.0,0.00019882,2]
[393546069,1762790952711,-500.0,0.00019882,2]
[393546070,1762790952736,-500.0,0.00019882,2]
[393546071,1762790952759,-500.0,0.00019882,2]
[393546072,1762790952782,-500.0,0.00019882,2]
[393546073,1762790952804,-500.0,0.00019882,2]
[393546074,1762790952828,-500.0,0.00019882,2]
[393546075,1762790952850,-500.0,0.00019882,2]
[393546076,1762790952872,-500.0,0.00019882,2]
[393546077,1762790952895,-500.0,0.00019882,2]
[393546078,1762790952917,-500.0,0.00019882,2]
[393546079,1762790952940,-500.0,0.00019882,2]
[393546080,1762790952963,-500.0,0.00019882,2]
[393546081,1762790952986,-500.0,0.00019882,2]
[393546082,1762790953012,-500.0,0.00019882,2]
[393546083,1762790953035,-500.0,0.00019882,2]
[393546084,1762790953058,-500.0,0.00019882,2]
[393546085,1762790953080,-500.0,0.00019882,2]
[393546086,1762790953102,-500.0,0.00019882,2]
[393546087,1762790953127,-500.0,0.00019882,2]
[393546088,1762790953150,-500.0,0.00019882,2]
[393546089,1762790953174,-500.0,0.00019882,2]
[393546090,1762790953199,-500.0,0.00019882,2]
[393546091,1762790953223,-500.0,0.00019882,2]
[393546092,1762790953247,-500.0,0.00019882,2]
[393546093,1762790953272,-500.0,0.00019882,2]
[393546094,1762790953296,-196.76980754,0.00019882,2]
[393546095,1762790953321,-500.0,0.00019882,2]
[393546096,1762790953345,-500.0,0.00019882,2]
[393546097,1762790953368,-500.0,0.00019882,2]
[393546098,1762790953392,-500.0,0.00019882,2]
[393546099,1762790953418,-500.0,0.00019882,2]
[393546100,1762790953447,-500.0,0.00019882,2]
[393546101,1762790953470,-500.0,0.00019882,2]
[393546102,1762790953493,-500.0,0.00019882,2]
[393546103,1762790953516,-500.0,0.00019882,2]
[393546104,1762790953541,-500.0,0.00019882,2]
[393546105,1762790953565,-500.0,0.00019882,2]
[393546106,1762790953588,-500.0,0.00019882,2]
[393546107,1762790953611,-50000.0,0.00019883,2]
[393546108,1762790953633,-311.16772133,0.00019885,2]
[393546109,1762790953654,-263.8119752,0.00019886,2]
[393546110,1762790953676,-152.7,0.000199,2]
[393546111,1762790953698,-152.7,0.000199,2]
[393546112,1762790953721,-152.7,0.000199,2]
[393546113,1762790953744,-152.7,0.000199,2]
[393546114,1762790953767,-152.7,0.000199,2]
[393546115,1762790953794,-152.7,0.000199,2]
[393546116,1762790953819,-152.7,0.000199,2]
[393546117,1762790953843,-152.7,0.000199,2]
[393546118,1762790953870,-152.7,0.000199,2]
[393546119,1762790953893,-151.0,0.00019959,2]
[393546120,1762790953915,-151.0,0.00019959,2]
[393546121,1762790953939,-151.0,0.00019959,2]
[393546122,1762790953960,-155.87612082,0.00019959,2]
[393546123,1762790953983,-389.364731,0.00020187,2]
[393546124,1762790954007,-600.0,0.00020283,2]
[393546125,1762790954031,-350.0,0.00020299,4]
[393546126,1762790954053,-655.20611208,0.00020421,2]
[393546127,1762790954074,-500.0,0.00020429,2]
[393546128,1762790954095,-677.13344485,0.00020558,2]
[393546129,1762790954187,-151.71,0.00021,2]
[393546130,1762790954215,-150.0,0.00021,2]
[393546131,1762790954237,-420.0,0.00021547,2]
[393546132,1762790954259,-1200.0,0.00021652,2]
[393546133,1762790954280,-212.42,0.0002172,2]
[393546134,1762790954302,-202.53,0.0002172,2]
[393546135,1762790954324,-212.42402836,0.0002182,2]
[393546136,1762790954346,-188.91671899,0.00021829,2]
[393546137,1762790954370,-171.64,0.00022,7]
[393546138,1762790954391,-263.8119752,0.0002204,2]
[393546139,1762790954416,-210.21,0.000221,14]
[393546140,1762790954437,-399.99776637,0.00022297,2]
[393546141,1762790954463,-720.0,0.00022311,20]
[393546142,1762790954486,-163.45282533,0.00022426,2]
[393546143,1762790954510,-1333.90733683,0.00022547,2]
[393546144,1762790954532,-191.39789704,0.00022547,2]
[393546145,1762790954554,-344.51621468,0.00022547,2]
[393546146,1762790954574,-612.47327054,0.00022547,2]
[393546147,1762790954596,-160.0,0.000226,2]
[393546148,1762790954620,-156.03602926,0.00022853,2]
[393546149,1762790954642,-657.12738799,0.00023035,2]
[393546150,1762790954663,-195.45775017,0.00023035,2]
[393546151,1762790954684,-260.0,0.00023148,2]
[393546152,1762790954707,-392.6565769,0.00023288,30]
[393546153,1762790954730,-587.0,0.00023468,2]
[393546154,1762790954756,-360.0,0.00023696,2]
[393546155,1762790954777,-413.0,0.0002376,2]
[393546156,1762790954799,-217.73452358,0.00023829,2]
[393546157,1762790954821,-288.368314,0.0002399,2]
[393546158,1762790954841,-150.0,0.00024025,2]
[393546159,1762790954867,-984.0,0.00024025,2]
[393546160,1762790954891,-564.743,0.00024025,2]
[393546161,1762790954913,-169.05292711,0.00024031,2]
[393546162,1762790954936,-263.8119752,0.00024193,2]
[393546163,1762790954959,-460.0,0.00024244,2]
[393546164,1762790954984,-864.0,0.00024542,20]
[393546165,1762790955007,-171.3384012,0.00024658,15]
[393546166,1762790955030,-380.0,0.00024658,2]
[393546167,1762790955053,-500.0,0.00024773,2]
[393546168,1762790955073,-560.0,0.00024792,2]
[393546169,1762790955095,-15344.3085155,0.000248,2]
[393546170,1762790955116,-500.0,0.00024873,2]
[393546171,1762790955137,-500.0,0.00024873,2]
[393546172,1762790955158,-500.0,0.00024873,2]
[393546173,1762790955179,-500.0,0.00024873,2]
[393546174,1762790955199,-500.0,0.00024873,2]
[393546175,1762790955221,-672.11,0.0002489,3]
[393546176,1762790955243,-336.05,0.0002489,3]
[393546177,1762790955263,-168.03,0.0002489,3]
[393546178,1762790955284,-504.11,0.0002489,3]
[393546179,1762790955307,-3292.75,0.000249,7]
[393546180,1762790955329,-46960.40293845,0.000249,2]
[393546181,1762790963109,-9867.10973752,0.000249,2]
[393546238,1762791038273,-399.99776637,0.00022294,2]
[393546240,1762791038283,-500.0,0.00024873,2]
[393546242,1762791038293,-477.69156063,0.000249,2]
[393546324,1762791040518,-63863.8467064,0.000249,2]
[393546326,1762791040528,-156.19206529,0.00025169,2]
[393546328,1762791040538,-167.0,0.00025233,14]
[393546330,1762791040547,-600.0,0.00025397,20]
[393546332,1762791040557,-246.55232817,0.00025829,2]
[393546334,1762791040566,-266.98637923,0.00025973,2]
[393546336,1762791040575,-373.08664965,0.000261,2]
[393546338,1762791040585,-519.51,0.0002624,10]
[393546340,1762791040594,-217.81740493,0.00026249,2]
[393546342,1762791040603,-121169.050943,0.0002625,2]
[393546344,1762791040613,-15344.3085155,0.0002625,2]
[393546346,1762791040622,-1344.22,0.0002626,3]
[393546348,1762791040631,-672.1,0.0002626,3]
[393546350,1762791040641,-336.06,0.0002626,3]
[393546352,1762791040650,-179.63,0.000263,14]
[393546354,1762791040659,-263.8119752,0.00026347,2]
[393546356,1762791040668,-160.0,0.00026473,2]
[393546367,1762791040760,-389.364731,0.00026676,2]
[393546369,1762791040774,-668.4,0.00026678,2]
[393546371,1762791040784,-413.0,0.0002676,2]
[393546374,1762791040794,-260.0,0.00027021,2]
[393546376,1762791040817,-150.0,0.00027025,2]
[393546378,1762791040827,-288.368314,0.0002724,2]
[393546380,1762791040838,-150.0,0.00027397,5]
[393546382,1762791040848,-150.0,0.00027397,5]
[393546385,1762791040859,-4075.39,0.000274,2]
[393546387,1762791040869,-500.0,0.00027561,2]
[393546389,1762791040879,-190.0,0.00027561,2]
[393546391,1762791040889,-151.0,0.00027561,2]
[393546393,1762791040899,-152.70386212,0.00027561,2]
[393546395,1762791040909,-151.0,0.00027561,2]
[393546397,1762791040919,-154.76472584,0.00027561,2]
[393546399,1762791040929,-500.0,0.00027561,2]
[393546401,1762791040941,-152.81628823,0.00027561,2]
[393546403,1762791040951,-152.56470532,0.00027561,2]
[393546405,1762791040962,-360.0,0.00027569,2]
[393546407,1762791040974,-3292.75,0.000276,7]
[393546409,1762791040985,-500.0,0.00027616,2]
[393546411,1762791040996,-151.0,0.00027616,2]
[393546413,1762791041007,-500.0,0.00027616,2]
[393546415,1762791041017,-288.368314,0.00027655,7]
[393546417,1762791041027,-500.0,0.00027671,2]
[393546419,1762791041037,-500.0,0.00027671,2]
[393546421,1762791041049,-500.0,0.00027725,2]
[393546423,1762791041061,-179.0,0.00027725,2]
[393546426,1762791041072,-500.0,0.0002778,2]
[393546427,1762791041082,-275.37013277,0.00027829,2]
[393546429,1762791041092,-500.0,0.00027835,2]
[393546430,1762791041102,-500.0,0.0002789,2]
[393546431,1762791041112,-720.0,0.00027937,30]
[393546432,1762791041121,-500.0,0.00027945,2]
[393546433,1762791041131,-250.0,0.00027945,5]
[393546434,1762791041140,-250.0,0.00027945,5]
[393546435,1762791041150,-1336.8,0.00027948,2]
[393546436,1762791041160,-500.0,0.00027999,2]
[393546437,1762791041171,-500.0,0.00028054,2]
[393546438,1762791041181,-363.95837168,0.00028109,2]
[393546439,1762791041191,-460.0,0.00028117,2]
[393546441,1762791041201,-250.416598,0.00028397,2]
[393546443,1762791041213,-350.0,0.00028493,5]
[393546444,1762791041222,-350.0,0.00028493,5]
[393546446,1762791041232,-169.0,0.00028521,14]
[393546449,1762791041242,-560.0,0.00028665,2]
[393546451,1762791041252,-1826.1761305,0.00028763,2]
[393546453,1762791041263,-121169.050943,0.00028863,2]
[393546455,1762791041273,-15344.3085155,0.00028863,2]
[393546457,1762791041283,-150.0,0.00028873,5]
[393546459,1762791041293,-12500.0,0.00028873,10]
[393546461,1762791041302,-121169.050943,0.0002888,2]
[393546463,1762791041312,-15344.3085155,0.0002888,2]
[393546464,1762791041323,-7236.14296995,0.00028882,10]
[393546467,1762791041336,-714.16590829,0.00028882,10]
[393546486,1762791041519,-215.69320975,0.00028882,10]
[393546723,1762791043781,-223.78264145,0.00019089,2]
[393546725,1762791043791,-92.10735855,0.000263,7]
[393546727,1762791043804,-71.27264145,0.000263,7]
[393546729,1762791043813,-1076.82735855,0.00028882,10]
[393546954,1762791046785,-3257.17055346,0.00028882,10]
[393546956,1762791046795,-7216.82944654,0.0002889,10]
[393546958,1762791046807,-2833.72109279,0.0002889,10]
[393546960,1762791046819,-1198.95890721,0.0002889,10]
[393546963,1762791046830,-1250.49055346,0.0002889,10]
[393546965,1762791046840,-12500.0,0.00028899,10]
[393546967,1762791046849,-399.99776637,0.00028899,10]
[393546968,1762791046858,-399.99776637,0.00028899,10]
[393546970,1762791046869,-885.1484739,0.00029,2]
[393546972,1762791046878,-504.79394925,0.00029,7]
[393546974,1762791046888,-450.0,0.00029041,5]
[393546976,1762791046900,-450.0,0.00029041,5]
[393546978,1762791046912,-660.0,0.00029212,2]
[393546980,1762791046921,-2029.74124987,0.0002939,5]
[393546982,1762791046931,-3292.75,0.000294,7]
[393546984,1762791046942,-250.0,0.00029421,5]
[393546986,1762791046951,-179.82017982,0.00029583,3]
[393546988,1762791046961,-450.0,0.00029589,5]
[393546990,1762791046971,-550.0,0.00029589,5]
[393546992,1762791046981,-760.0,0.0002976,2]
[393546994,1762791046991,-179.63,0.000298,14]
[393546996,1762791047001,-304.18793736,0.00029829,2]
[393546998,1762791047010,-350.0,0.00029968,5]
[393546999,1762791047020,-15344.3085155,0.00029978,2]
[393547001,1762791047030,-30688.617031,0.00029988,2]
[393547003,1762791047039,-15344.3085155,0.0002999,2]
[393547005,1762791047048,-102108.27309718,0.00029998,2]
[393547007,1762791047058,-9570.43209552,0.0003,2]
[393547009,1762791047067,-3507.05571922,0.0003,2]
[393547011,1762791047077,-357.47919406,0.0003,2]
[393547013,1762791047087,-7674.57110809,0.0003,5]
[393547015,1762791047097,-165.46,0.0003,5]
[393547017,1762791047107,-268.52220759,0.0003,2]
[393547019,1762791047117,-900.0,0.0003,2]
[393547021,1762791047127,-4075.39,0.0003,2]
[393547023,1762791047136,-1000.0,0.0003,14]
[393547025,1762791047145,-175.0,0.0003,14]
[393547028,1762791047155,-288.368314,0.00030015,7]
[393547030,1762791047164,-163.38,0.000301,7]
[393547031,1762791047174,-505.85866726,0.00030108,7]
[393547033,1762791047183,-286.60524916,0.0003013,2]
[393547035,1762791047194,-2181.86276353,0.0003013,5]
[393547037,1762791047203,-300.0,0.00030137,5]
[393547039,1762791047214,-650.0,0.00030137,5]
[393547041,1762791047223,-500.0,0.00030161,7]
[393547043,1762791047232,-673.1942596,0.0003022,2]
[393547045,1762791047242,-860.0,0.00030308,2]
[393547047,1762791047252,-161.87,0.00030401,26]
[393547050,1762791047262,-500.0,0.00030414,7]
[393547052,1762791047272,-288.368314,0.0003049,2]
[393547053,1762791047281,-450.0,0.00030516,5]
[393547055,1762791047291,-293.85068442,0.0003055,7]
[393547057,1762791047300,-602.25958883,0.00030685,5]
[393547060,1762791047310,-750.0,0.00030685,5]
[393547062,1762791047320,-500.0,0.00030702,7]
[393547064,1762791047330,-399.99776637,0.00030702,7]
[393547066,1762791047339,-864.0,0.0003073,30]
[393547068,1762791047348,-960.0,0.00030856,2]
[393547070,1762791047358,-500.0,0.00030973,7]
[393547072,1762791047368,-550.0,0.00031064,5]
[393547073,1762791047377,-517.76375783,0.000312,7]
[393547075,1762791047387,-500.0,0.00031226,7]
[393547077,1762791047397,-850.0,0.00031233,5]
[393547079,1762791047407,-1060.0,0.00031404,2]
[393547081,1762791047416,-500.0,0.00031422,7]
[393547083,1762791047426,-3292.75,0.000315,7]
[393547085,1762791047436,-903.58879945,0.00031529,7]
[393547087,1762791047450,-650.0,0.00031612,5]
[393547089,1762791047459,-176.0,0.00031644,14]
[393547091,1762791047470,-15344.3085155,0.00031749,2]
[393547094,1762791047480,-3342.0,0.00031759,2]
[393547096,1762791047491,-950.0,0.00031781,5]
[393547098,1762791047500,-333.00574195,0.00031829,2]
[393547099,1762791047509,-10010.31118549,0.0003185,2]
[393547101,1762791047520,-500.0,0.00031923,7]
[393547103,1762791047529,-1160.0,0.00031952,2]
[393547105,1762791047538,-4075.39,0.00032,2]
[393547107,1762791047548,-160.0,0.00032086,3]
[393547109,1762791047557,-750.0,0.0003216,5]
[393547111,1762791047567,-1050.0,0.00032329,5]
[393547113,1762791047576,-288.368314,0.00032374,7]
[393547115,1762791047586,-1260.0,0.000325,2]
[393547117,1762791047596,-757.0,0.000327,2]
[393547119,1762791047606,-1011.28111434,0.000328,14]
[393547121,1762791047616,-151.0,0.000328,14]
[393547122,1762791047626,-15344.3085155,0.00032867,2]
[393547123,1762791047636,-1826.17613048,0.00032868,2]
[393547124,1762791047646,-157.58130014,0.0003287,14]
[393547125,1762791047659,-500.0,0.00032876,2]
[393547126,1762791047669,-1000.0,0.00032876,2]
[393547127,1762791047678,-1000.53950144,0.00032876,2]
[393547128,1762791047689,-1018.70496279,0.00032876,14]
[393547129,1762791047699,-5000.0,0.00032877,120]
[393547130,1762791047709,-150.0,0.00032877,60]
[393547131,1762791047720,-303.72090611,0.00032877,5]
[393547132,1762791047730,-200.0,0.00033,7]
[393547134,1762791047739,-399.99776637,0.00033,120]
[393547136,1762791047749,-153.0,0.00033012,30]
[393547138,1762791047758,-153.0,0.00033012,30]
[393547139,1762791047767,-153.0,0.00033012,30]
[393547141,1762791047777,-153.0,0.00033012,30]
[393547150,1762791047849,-153.0,0.00033012,30]
[393547152,1762791047858,-153.0,0.00033013,30]
[393547154,1762791047868,-153.0,0.00033013,30]
[393547156,1762791047878,-4010.4,0.0003303,2]
[393547158,1762791047888,-1475.59967131,0.00033048,2]
[393547160,1762791047898,-164.0684288,0.0003307,30]
[393547162,1762791047907,-394.97,0.0003315,14]
[393547164,1762791047917,-389.364731,0.00033165,2]
[393547166,1762791047926,-223.6704022,0.00033308,30]
[393547168,1762791047936,-500.0,0.00033424,2]
[393547170,1762791047946,-1000.0,0.00033424,2]
[393547172,1762791047956,-394.97,0.00033698,15]
[393547174,1762791047965,-4075.39,0.000337,14]
[393547176,1762791047975,-179.63,0.000337,30]
[393547178,1762791047984,-163.38,0.000337,7]
[393547180,1762791047993,-288.368314,0.00033739,2]
[393547182,1762791048003,-1000.0,0.00033803,30]
[393547184,1762791048012,-224.00642409,0.0003381,2]
[393547186,1762791048022,-551.50672241,0.00033811,2]
[393547188,1762791048032,-361.82354654,0.00033829,120]
[393547190,1762791048041,-153.0,0.00033834,30]
[393547192,1762791048053,-153.0,0.00033834,30]
[393547194,1762791048062,-153.0,0.00033834,30]
[393547196,1762791048073,-153.0,0.00033834,30]
[393547198,1762791048082,-153.0,0.00033834,30]
[393547200,1762791048093,-153.0,0.00033834,30]